bitfinex-derivatives/quotes_BNBF0:USTF0_20250316
["timestamp","ask_amount","ask_price","bid_price","bid_amount"]
[1742147019745,0.27996645,604.47,603.25,0.3315375]
[1742147020050,0.27996645,604.46,603.25,0.3315375]
[1742147022456,0.27996645,604.48,603.27,0.33152651]
[1742147026059,0.27994138,604.47,603.27,0.33152651]
[1742147026260,0.27994138,604.48,603.27,0.33152651]
[1742147030964,0.27994267,604.47,603.27,0.33152651]
[1742147031159,0.27994267,604.48,603.27,0.33152651]
[1742147031357,0.27994267,604.47,603.27,0.33152651]
[1742147031562,0.27994267,604.48,603.27,0.33152651]
[1742147035166,0.33085741,604.49,603.27,0.33152651]
[1742147035365,0.2799413,604.48,603.27,0.33152651]
[1742147038471,0.27992377,604.47,603.27,0.33152651]
[1742147038671,0.27992377,604.48,603.27,0.33152651]
[1742147045177,0.33085741,604.49,603.27,0.33152651]
[1742147045372,0.2799399,604.48,603.27,0.33152651]
[1742147045577,0.2799399,604.47,603.27,0.33152651]
[1742147045878,0.2799399,604.46,603.27,0.33152651]
[1742147046179,0.2799399,604.45,603.27,0.33152651]
[1742147046377,2.50503755,604.39,603.27,0.33152651]
[1742147046581,3.75659913,604.38,603.27,0.33152651]
[1742147046781,0.2799399,604.37,603.27,0.33152651]
[1742147047181,0.27998157,604.36,603.27,0.33152651]
[1742147047380,0.27998157,604.37,603.27,0.33152651]
[1742147047579,2.96413685,604.37,603.27,0.33152651]
[1742147047780,3.7566408,604.36,603.27,0.33152651]
[1742147047980,0.27998157,604.35,603.27,0.33152651]
[1742147049181,2.96413685,604.35,603.27,0.33152651]
[1742147049381,3.7566408,604.34,603.27,0.33152651]
[1742147049683,0.27998157,604.33,603.27,0.33152651]
[1742147049885,0.27998157,604.34,603.27,0.33152651]
[1742147050084,0.27998157,604.33,603.27,0.33152651]
[1742147050303,0.27998157,604.32,603.27,0.33152651]
[1742147050583,0.27998157,604.31,603.27,0.90752651]
[1742147050785,0.27998157,604.34,603.27,0.90752651]
[1742147050978,0.27998157,604.33,603.27,0.90752651]
[1742147051183,0.27998157,604.32,603.27,0.90752651]
[1742147051378,0.27998157,604.48,603.27,0.90752651]
[1742147051578,0.61084993,604.47,603.27,0.90752651]
[1742147051781,0.6108554,604.46,603.27,0.90752651]
[1742147051979,0.27998157,604.45,603.27,0.90752651]
[1742147052377,0.33087383,604.46,603.27,0.90752651]
[1742147052583,0.28003432,604.45,603.27,0.90752651]
[1742147054585,0.33087383,604.46,603.27,0.90752651]
[1742147054787,0.28003557,604.44,603.27,0.90752651]
[1742147054990,0.28003557,604.45,603.27,0.90752651]
[1742147055288,0.28003557,604.44,603.27,0.90752651]
[1742147055491,0.28003557,604.45,603.27,0.90752651]
[1742147058285,0.2800313,604.44,603.27,0.90752651]
[1742147058487,0.2800313,604.45,603.27,0.90752651]
[1742147058688,0.2800313,604.44,603.27,0.90752651]
[1742147058888,0.2800313,604.45,603.27,0.90752651]
[1742147059089,0.2800313,604.44,603.27,0.90752651]
[1742147059288,0.2800313,604.45,603.27,0.90752651]
[1742147061192,0.2800313,604.44,603.27,0.90752651]
[1742147061393,0.2800313,604.45,603.27,0.90752651]
[1742147061689,0.2800313,604.44,603.27,0.90752651]
[1742147061893,0.28002569,604.43,603.27,0.90752651]
[1742147062093,0.33087383,604.46,603.27,0.90752651]
[1742147062094,0.28002569,604.45,603.27,0.90752651]
[1742147062293,0.33087383,604.46,603.27,0.90752651]
[1742147062294,0.28002569,604.44,603.27,0.90752651]
[1742147062594,0.28002569,604.45,603.27,0.90752651]
[1742147063889,0.33087383,604.46,603.27,0.90752651]
[1742147064094,0.28002537,604.45,603.27,0.90752651]
[1742147065897,0.33087383,604.46,603.27,0.90752651]
[1742147066192,0.28000512,604.45,603.27,0.90752651]
[1742147071098,0.33087383,604.46,603.27,0.90752651]
[1742147071299,0.28000583,604.45,603.27,0.90752651]
[1742147073100,0.33087383,604.46,603.27,0.90752651]
[1742147073300,0.28000842,604.45,603.27,0.90752651]
[1742147076999,0.27999156,604.44,603.27,0.90752651]
[1742147077197,0.33087383,604.46,603.27,0.90752651]
[1742147077198,0.27999156,604.45,603.27,0.90752651]
[1742147077400,0.27999156,604.44,603.27,0.90752651]
[1742147077601,0.27999156,604.45,603.27,0.90752651]
[1742147077801,0.27999156,604.44,603.27,0.90752651]
[1742147078003,0.27999156,604.43,603.27,0.90752651]
[1742147078299,0.27999156,604.45,603.27,0.90752651]
[1742147078498,0.27999156,604.44,603.27,0.90752651]
[1742147078701,0.27999156,604.45,603.27,0.90752651]
[1742147078901,0.27999156,604.44,603.27,0.90752651]
[1742147079202,0.27999156,604.43,603.27,0.90752651]
[1742147079403,0.27999156,604.45,603.27,0.90752651]
[1742147079598,0.27999156,604.44,603.27,0.90752651]
[1742147079800,0.27999156,604.45,603.27,0.90752651]
[1742147079999,0.27999156,604.44,603.27,0.90752651]
[1742147080202,0.27999156,604.45,603.27,0.90752651]
[1742147080509,0.27999156,604.44,603.27,0.90752651]
[1742147080703,0.27999156,604.45,603.27,0.90752651]
[1742147080903,0.27999156,604.44,603.27,0.90752651]
[1742147081104,0.33087383,604.46,603.27,0.90752651]
[1742147081302,0.28000709,604.45,603.27,0.90752651]
[1742147082405,0.28000716,604.44,603.27,0.90752651]
[1742147082706,0.28000716,604.43,603.27,0.90752651]
[1742147082903,0.28000716,604.45,603.27,0.90752651]
[1742147083103,0.28000716,604.44,603.27,0.90752651]
[1742147083303,0.28000716,604.45,603.27,0.90752651]
[1742147083504,0.28000716,604.44,603.27,0.90752651]
[1742147083697,0.28000716,604.45,603.27,0.90752651]
[1742147083898,0.28000716,604.44,603.27,0.90752651]
[1742147084099,0.28000716,604.45,603.27,0.90752651]
[1742147084405,0.28000716,604.44,603.27,0.90752651]
[1742147084604,0.28000716,604.43,603.27,0.90752651]
[1742147084806,0.28000716,604.45,603.27,0.90752651]
[1742147085000,0.28000716,604.44,603.27,0.90752651]
[1742147085201,0.28000716,604.45,603.27,0.90752651]
[1742147085404,0.28000716,604.44,603.27,0.90752651]
[1742147085605,0.28000716,604.45,603.27,0.90752651]
[1742147085804,0.28000716,604.44,603.27,0.90752651]
[1742147085999,0.2800035,604.43,603.27,0.90752651]
[1742147086201,0.2800035,604.42,603.27,0.90752651]
[1742147086499,0.2800035,604.41,603.27,0.90752651]
[1742147086706,0.2800035,604.4,603.27,0.90752651]
[1742147086909,0.2800035,604.39,603.27,0.90752651]
[1742147087204,0.2800035,604.38,603.27,0.90752651]
[1742147087407,0.2800035,604.45,603.27,0.90752651]
[1742147087601,0.2800035,604.44,603.27,0.90752651]
[1742147087801,0.2800035,604.45,603.27,0.90752651]
[1742147088007,0.2800035,604.44,603.27,0.90752651]
[1742147088307,0.2800035,604.43,603.27,0.90752651]
[1742147088507,0.2800035,604.45,603.27,0.90752651]
[1742147088707,0.2800035,604.44,603.27,0.90752651]
[1742147088906,0.2800035,604.45,603.27,0.90752651]
[1742147089107,0.2800035,604.44,603.27,0.90752651]
[1742147089507,0.2800035,604.43,603.27,0.90752651]
[1742147089703,0.2800035,604.42,603.27,0.90752651]
[1742147089903,0.2800035,604.41,603.27,0.90752651]
[1742147090104,0.2800035,604.4,603.27,0.90752651]
[1742147090303,0.2800035,604.41,603.27,0.90752651]
[1742147090909,2.50503755,604.38,603.27,0.90752651]
[1742147091103,0.2800035,604.37,603.27,0.90752651]
[1742147093313,0.2800035,604.45,603.27,0.90752651]
[1742147098518,0.33087383,604.46,603.27,0.90752651]
[1742147098715,0.27984964,604.45,603.27,0.90752651]
[1742147100719,0.33087383,604.46,603.27,0.90752651]
[1742147100720,0.27993716,604.44,603.27,0.90752651]
[1742147101019,0.27993716,604.45,603.27,0.90752651]
[1742147101220,0.27993716,604.44,603.27,0.90752651]
[1742147101420,0.27993716,604.45,603.27,0.90752651]
[1742147113328,0.27993716,604.44,603.27,0.90752651]
[1742147113528,0.27993716,604.43,603.27,0.90752651]
[1742147113728,0.27993716,604.45,603.27,0.90752651]
[1742147113932,0.27993716,604.44,603.27,0.90752651]
[1742147114130,0.27993716,604.43,603.27,0.90752651]
[1742147114327,0.27993716,604.45,603.27,0.90752651]
[1742147114632,0.27993716,604.44,603.27,0.90752651]
[1742147114833,0.27993716,604.43,603.27,0.90752651]
[1742147115229,0.27993716,604.42,603.27,0.90752651]
[1742147115434,0.27993716,604.45,603.27,0.90752651]
[1742147115629,0.27993716,604.44,603.27,0.90752651]
[1742147115834,0.27993716,604.45,603.27,0.90752651]
[1742147116033,0.27993716,604.44,603.27,0.90752651]
[1742147116229,0.27993716,604.45,603.27,0.90752651]
[1742147116429,0.27993716,604.44,603.27,0.90752651]
[1742147116634,0.27993716,604.45,603.27,0.90752651]
[1742147116940,0.27993716,604.44,603.27,0.90752651]
[1742147117328,0.27993716,604.43,603.27,0.90752651]
[1742147117529,0.27993716,604.45,603.27,0.90752651]
[1742147117733,0.27993716,604.42,603.27,0.90752651]
[1742147117934,0.33087383,604.46,603.27,0.90752651]
[1742147117935,0.27993716,604.41,603.27,0.90752651]
[1742147118131,0.27993716,604.45,603.27,0.90752651]
[1742147118335,0.27993716,604.4,603.27,0.90752651]
[1742147118530,0.27993716,604.39,603.27,0.90752651]
[1742147118935,0.27993716,604.38,603.27,0.90752651]
[1742147119241,0.27993716,604.37,603.27,0.90752651]
[1742147119436,0.27993716,604.45,603.27,0.90752651]
[1742147119637,0.27993716,604.44,603.27,0.90752651]
[1742147119938,0.27993716,604.43,603.27,0.90752651]
[1742147120137,0.27993716,604.42,603.27,0.90752651]
[1742147120443,0.27993716,604.41,603.27,0.90752651]
[1742147120736,0.27993716,604.45,603.27,0.90752651]
[1742147120937,0.27993716,604.44,603.27,0.90752651]
[1742147121136,0.27993716,604.45,603.27,0.90752651]
[1742147126041,0.33087383,604.46,603.27,0.90752651]
[1742147126241,0.27975644,604.45,603.27,0.90752651]
[1742147133845,0.27975644,604.44,603.27,0.90752651]
[1742147134050,0.27975644,604.43,603.27,0.90752651]
[1742147134251,0.27975644,604.42,603.27,0.90752651]
[1742147134446,0.27975644,604.41,603.27,0.90752651]
[1742147134647,0.27975644,604.4,603.27,0.90752651]
[1742147134848,0.27975644,604.39,603.27,0.90752651]
[1742147135048,0.27975644,604.38,603.27,0.90752651]
[1742147135350,0.27975644,604.37,603.27,0.90752651]
[1742147135751,0.27975644,604.36,603.27,0.90752651]
[1742147136051,0.27975644,604.35,603.27,0.90752651]
[1742147136252,0.27975644,604.34,603.27,0.90752651]
[1742147136454,0.27975644,604.45,603.27,0.90752651]
[1742147136646,0.27975644,604.44,603.27,0.90752651]
[1742147136852,0.27975644,604.43,603.27,0.90752651]
[1742147137050,0.27975644,604.42,603.27,0.90752651]
[1742147137251,2.50503755,604.38,603.27,0.90752651]
[1742147137552,5.20048932,604.37,603.27,0.90752651]
[1742147137853,4.40696546,604.36,603.27,0.90752651]
[1742147138045,5.20048932,604.35,603.27,0.90752651]
[1742147138250,0.27975644,604.34,603.27,0.90752651]
[1742147138651,0.27975644,604.33,603.27,0.90752651]
[1742147138856,0.27975644,604.32,603.27,0.90752651]
[1742147139249,0.27975644,604.31,603.27,0.90752651]
[1742147139458,3.75682673,604.33,603.27,0.90752651]
[1742147139756,0.27975644,604.32,603.27,0.90752651]
[1742147140654,2.96330287,604.32,603.27,0.90752651]
[1742147140955,3.75682673,604.31,603.27,0.90752651]
[1742147141156,0.27975644,604.3,603.27,0.90752651]
[1742147142459,0.27975644,604.29,603.27,0.90752651]
[1742147142654,0.27975644,604.31,603.27,0.90752651]
[1742147142960,0.27975644,604.3,603.27,0.90752651]
[1742147143258,0.27975644,604.29,603.27,0.90752651]
[1742147143459,3.47129579,604.42,603.27,0.90752651]
[1742147143460,0.27975644,604.28,603.27,0.90752651]
[1742147143654,0.27975644,604.41,603.27,0.90752651]
[1742147143857,0.27975644,604.4,603.27,0.90752651]
[1742147144054,0.27975644,604.41,603.27,0.90752651]
[1742147144256,3.47129579,604.42,603.27,0.90752651]
[1742147144460,2.96321221,604.41,603.27,0.90752651]
[1742147144657,3.75096157,604.4,603.27,0.90752651]
[1742147144862,0.27966578,604.39,603.27,0.90752651]
[1742147146266,2.96321221,604.39,603.27,0.90752651]
[1742147146460,3.75096157,604.38,603.27,0.90752651]
[1742147146663,0.27966578,604.37,603.27,0.90752651]
[1742147148069,2.96321221,604.37,603.27,0.90752651]
[1742147148268,0.27958172,604.36,603.27,0.90752651]
[1742147149063,3.74936563,604.36,603.27,0.90752651]
[1742147149262,0.27958172,604.35,603.27,0.90752651]
[1742147149666,0.27958172,604.36,603.27,0.90752651]
[1742147149867,2.50503755,604.54,603.27,0.90752651]
[1742147150063,0.27953003,604.45,603.27,0.90752651]
[1742147151573,2.68012966,604.53,603.27,0.90752651]
[1742147151766,0.27955087,604.45,603.27,0.90752651]
[1742147161969,1.44031264,604.89,603.27,0.90752651]
[1742147162175,0.279568,604.45,603.27,0.90752651]
[1742147167677,0.27962562,604.44,603.27,0.90752651]
[1742147167874,0.27962562,604.43,603.27,0.90752651]
[1742147168079,0.27962562,604.45,603.27,0.90752651]
[1742147168378,0.27962562,604.44,603.27,0.90752651]
[1742147168577,0.27962562,604.43,603.27,0.90752651]
[1742147168778,0.27962562,604.42,603.27,0.90752651]
[1742147168981,0.27962562,604.45,603.27,0.90752651]
[1742147169177,0.27962562,604.44,603.27,0.90752651]
[1742147169385,0.27962562,604.45,603.27,0.90752651]
[1742147169584,0.27962562,604.44,603.27,0.90752651]
[1742147169779,0.27962562,604.45,603.27,0.90752651]
[1742147171180,1.44077559,604.93,603.27,0.90752651]
[1742147171386,0.27966055,604.44,603.27,0.90752651]
[1742147171685,0.27966055,604.43,603.27,0.90752651]
[1742147171881,1.44077559,604.93,603.27,0.90752651]
[1742147172082,0.27970771,604.45,603.27,0.90752651]
[1742147173085,1.44077559,604.91,603.27,0.90752651]
[1742147173286,0.27969936,604.45,603.27,0.90752651]
[1742147173782,0.27969629,604.44,603.27,0.90752651]
[1742147173981,0.27969629,604.45,603.27,0.90752651]
[1742147174187,0.27969629,604.44,603.27,0.90752651]
[1742147174385,0.27969629,604.45,603.27,0.90752651]
[1742147174580,0.27969629,604.43,603.27,0.90752651]
[1742147174787,0.27969629,604.42,603.27,0.90752651]
[1742147174986,0.27969629,604.45,603.27,0.90752651]
[1742147175186,0.27969629,604.44,603.27,0.90752651]
[1742147175483,0.27969629,604.43,603.27,0.90752651]
[1742147175786,0.27969629,604.42,603.27,0.90752651]
[1742147175987,0.27969629,604.45,603.27,0.90752651]
[1742147176286,0.27969629,604.44,603.27,0.90752651]
[1742147176486,0.27969629,604.43,603.27,0.90752651]
[1742147176686,0.27969629,604.42,603.27,0.90752651]
[1742147176887,0.27969629,604.45,603.27,0.90752651]
[1742147177087,0.27969629,604.44,603.27,0.90752651]
[1742147177288,0.27969629,604.45,603.27,0.90752651]
[1742147177488,0.27969629,604.44,603.27,0.90752651]
[1742147177686,0.27969629,604.45,603.27,0.90752651]
[1742147177883,0.27969629,604.44,603.27,0.90752651]
[1742147178189,0.27958754,604.43,603.27,0.90752651]
[1742147178389,0.27958754,604.42,603.27,0.90752651]
[1742147178588,0.2795829,604.41,603.27,0.90752651]
[1742147178789,0.2795829,604.4,603.27,0.90752651]
[1742147178992,0.2795829,604.45,603.27,0.90752651]
[1742147182397,0.27948879,604.44,603.27,0.90752651]
[1742147182589,0.27948879,604.43,603.27,0.90752651]
[1742147182793,0.27948879,604.45,603.27,0.90752651]
[1742147182991,0.27948879,604.44,603.27,0.90752651]
[1742147183193,0.27948879,604.45,603.27,0.90752651]
[1742147185897,0.27943864,604.44,603.27,0.90752651]
[1742147186098,0.27943864,604.45,603.27,0.90752651]
[1742147186298,0.27943864,604.44,603.27,0.90752651]
[1742147186600,0.27943864,604.43,603.27,0.90752651]
[1742147186799,0.27943864,604.45,603.27,0.90752651]
[1742147186999,0.27943864,604.44,603.27,0.90752651]
[1742147187200,2.68072002,604.7,603.27,0.90752651]
[1742147187500,0.279429,604.45,603.27,0.90752651]
[1742147187700,3.46562643,604.69,603.27,0.90752651]
[1742147187901,0.27939624,604.45,603.27,0.90752651]
[1742147192303,0.27939624,604.44,603.27,0.90752651]
[1742147192508,4.90470189,604.5,603.27,0.90752651]
[1742147192509,0.27939624,604.43,603.27,0.90752651]
[1742147192901,0.27939624,604.42,603.27,0.90752651]
[1742147193102,0.27939624,604.41,603.27,0.90752651]
[1742147193307,0.27939624,604.45,603.27,0.90752651]
[1742147193509,0.27939624,604.4,603.27,0.90752651]
[1742147193709,0.27939624,604.39,603.27,0.90752651]
[1742147194009,0.27939624,604.38,603.27,0.90752651]
[1742147194201,0.27939624,604.4,603.27,0.90752651]
[1742147194403,0.27939624,604.39,603.27,0.90752651]
[1742147194708,0.27939624,604.38,603.27,0.90752651]
[1742147194907,0.27939624,604.37,603.27,0.90752651]
[1742147195109,0.27939624,604.4,603.27,0.90752651]
[1742147195310,0.27939624,604.39,603.27,0.90752651]
[1742147195505,0.27939624,604.41,603.27,0.90752651]
[1742147195712,0.27939624,604.4,603.27,0.90752651]
[1742147196008,0.27939624,604.45,603.27,0.90752651]
[1742147196208,0.27939624,604.44,603.27,0.90752651]
[1742147196408,0.27939624,604.45,603.27,0.90752651]
[1742147196617,0.27939624,604.44,603.27,0.90752651]
[1742147196809,0.27939624,604.45,603.27,0.90752651]
[1742147197010,0.27939624,604.44,603.27,0.90752651]
[1742147197210,0.27939624,604.45,603.27,0.90752651]
[1742147197516,0.27939624,604.44,603.27,0.90752651]
[1742147197708,0.27939624,604.43,603.27,0.576]
[1742147198013,0.27939624,604.42,603.27,0.576]
[1742147198313,0.27939624,604.41,603.27,0.576]
[1742147198507,0.27939624,604.4,603.27,0.576]
[1742147198711,0.27939624,604.39,603.27,0.576]
[1742147198907,0.27939624,604.38,603.27,0.576]
[1742147199212,0.61031935,604.37,603.27,0.576]
[1742147199412,0.61032482,604.36,603.27,0.576]
[1742147199714,2.50503755,604.31,603.27,0.576]
[1742147199910,5.51062432,604.3,603.27,0.576]
[1742147200208,2.04840739,604.29,603.27,0.576]
[1742147200417,0.33097239,604.28,603.27,0.576]
[1742147200618,0.27898852,604.27,603.27,0.576]
[1742147200818,0.27898852,604.26,603.27,0.576]
[1742147201011,0.27898852,604.25,603.27,0.576]
[1742147201213,0.33097239,604.28,603.27,0.576]
[1742147201214,0.27898852,604.24,603.27,0.576]
[1742147201416,0.27898852,604.23,603.27,0.576]
[1742147201719,0.27898852,604.22,603.27,0.576]
[1742147201913,0.27898852,604.21,603.27,0.576]
[1742147202118,0.27898852,604.2,603.27,0.576]
[1742147202318,0.33097239,604.28,603.27,0.576]
[1742147202519,0.27893167,604.27,603.27,0.576]
[1742147202721,0.33098335,604.26,603.27,0.576]
[1742147202921,0.27893167,604.25,603.27,0.576]
[1742147203619,0.3309943,604.24,603.27,0.576]
[1742147203820,0.27893167,604.23,603.27,0.576]
[1742147204219,0.33100526,604.22,603.27,0.576]
[1742147204414,0.27893167,604.21,603.27,0.576]
[1742147204613,0.33101621,604.2,603.27,0.576]
[1742147204816,0.27893167,604.19,603.27,0.576]
[1742147205013,0.33102717,604.18,603.27,0.576]
[1742147205215,0.27893167,604.17,603.27,0.576]
[1742147205524,0.33103813,604.16,603.27,0.576]
[1742147205916,0.27886531,604.15,603.27,0.576]
[1742147206821,0.33104909,604.14,603.27,0.576]
[1742147207022,0.27886531,604.13,603.27,0.576]
[1742147207417,0.33106005,604.12,603.27,0.576]
[1742147207722,0.27886531,604.11,603.27,0.576]
[1742147209527,0.60990314,604.1,603.27,0.576]
[1742147210026,0.27883213,604.09,603.27,0.576]
[1742147212527,0.27883109,604.08,603.27,0.576]
[1742147212733,0.27883109,604.09,603.27,0.576]
[1742147214723,0.27883109,604.09,602.55,0.28864936]
[1742147214924,0.27883109,604.09,602.57,0.33191164]
[1742147215128,0.27883109,604.09,602.58,0.30469003]
[1742147215524,0.27883109,604.09,602.59,0.33190062]
[1742147215724,0.27883109,604.09,602.6,0.30469003]
[1742147215930,0.27883109,604.09,602.61,0.33188961]
[1742147217436,0.27883109,604.09,602.62,0.759]
[1742147217731,0.27883109,604.09,602.63,0.33187859]
[1742147218527,0.27871663,604.08,602.63,0.33187859]
[1742147218824,0.27871663,604.07,602.63,0.33187859]
[1742147219028,0.27871663,604.09,602.63,0.33187859]
[1742147220329,0.33107101,604.1,602.63,0.33187859]
[1742147220635,0.27874069,604.09,602.63,0.33187859]
[1742147220833,0.33108197,604.08,602.63,0.33187859]
[1742147221032,0.27874069,604.07,602.63,0.33187859]
[1742147222533,0.33109293,604.06,602.63,0.33187859]
[1742147222734,0.27874069,604.05,602.63,0.33187859]
[1742147224237,0.3311039,604.04,602.63,0.33187859]
[1742147224435,0.27874069,604.03,602.63,0.33187859]
[1742147228833,0.33111486,604.02,602.63,0.33187859]
[1742147229038,0.27874069,604.01,602.63,0.33187859]
[1742147229239,0.33112582,604.0,602.63,0.33187859]
[1742147229439,0.27874069,603.99,602.63,0.33187859]
[1742147229640,0.33113679,603.98,602.63,0.33187859]
[1742147229938,0.27874069,603.97,602.63,0.33187859]
[1742147230233,0.60988296,603.97,602.63,0.33187859]
[1742147230439,0.27874069,603.96,602.63,0.33187859]
[1742147230740,0.27867748,603.95,602.63,0.33187859]
[1742147230940,0.27867748,603.96,602.63,0.33187859]
[1742147231139,0.27867748,603.95,602.63,0.33187859]
[1742147231441,0.6098362,603.94,602.63,0.33187859]
[1742147231640,0.60984168,603.93,602.63,0.33187859]
[1742147231839,0.60984717,603.92,602.63,0.33187859]
[1742147232141,0.60985265,603.91,602.63,0.33187859]
[1742147232436,0.27867748,603.9,602.63,0.33187859]
[1742147232640,0.33118614,603.89,602.63,0.33187859]
[1742147232841,0.27867748,603.88,602.63,0.33187859]
[1742147233140,0.33119711,603.87,602.63,0.33187859]
[1742147233341,0.27867748,603.86,602.63,0.33187859]
[1742147233938,0.33119711,603.87,602.63,0.33187859]
[1742147234135,0.60979411,603.85,602.63,0.33187859]
[1742147234342,0.60979959,603.84,602.63,0.33187859]
[1742147234538,0.27858603,603.83,602.63,0.33187859]
[1742147234739,0.60980508,603.83,602.63,0.33187859]
[1742147234937,0.27859007,603.82,602.63,0.33187859]
[1742147235442,0.6098146,603.82,602.63,0.33187859]
[1742147235642,0.27859007,603.81,602.63,0.33187859]
[1742147237545,0.3312355,603.8,602.63,0.33187859]
[1742147237742,0.27859007,603.79,602.63,0.33187859]
[1742147238443,0.27859007,603.79,602.62,0.759]
[1742147239942,0.33124648,603.78,602.62,0.759]
[1742147240146,0.27859007,603.77,602.62,0.759]
[1742147240347,0.33125745,603.76,602.62,0.759]
[1742147240550,0.27859007,603.75,602.62,0.759]
[1742147241347,0.33125745,603.76,602.62,0.759]
[1742147241548,0.2785514,603.75,602.62,0.759]
[1742147246849,0.33125745,603.76,602.62,0.759]
[1742147247048,0.27861267,603.75,602.62,0.759]
[1742147248748,0.27859828,603.74,602.62,0.759]
[1742147248947,0.27859828,603.75,602.62,0.759]
[1742147249149,0.27859828,603.74,602.62,0.759]
[1742147249551,0.27859828,603.73,602.62,0.759]
[1742147249752,0.27859828,603.75,602.62,0.759]
[1742147249952,0.27859828,603.74,602.62,0.759]
[1742147250256,0.27859828,603.73,602.62,0.759]
[1742147250448,0.27859828,603.75,602.62,0.759]
[1742147250649,0.27859828,603.74,602.62,0.759]
[1742147250850,0.27859828,603.75,602.62,0.759]
[1742147251050,0.27859828,603.74,602.62,0.759]
[1742147251252,0.27859828,603.73,602.62,0.759]
[1742147251453,0.27859828,603.75,602.62,0.759]
[1742147251650,0.27859828,603.74,602.62,0.759]
[1742147251857,0.27859828,603.75,602.62,0.759]
[1742147252058,0.27859828,603.74,602.62,0.759]
[1742147252254,0.27859828,603.75,602.62,0.759]
[1742147252454,0.27859828,603.74,602.62,0.759]
[1742147252754,0.33125745,603.76,602.62,0.759]
[1742147252951,0.2784829,603.75,602.62,0.759]
[1742147253959,0.27848992,603.74,602.62,0.759]
[1742147254258,0.27848992,603.73,602.62,0.759]
[1742147254460,0.27848992,603.75,602.26,0.28862782]
[1742147254758,0.27848992,603.74,602.28,0.33207146]
[1742147255161,0.27848992,603.73,602.29,0.30480577]
[1742147255357,0.27848992,603.75,602.31,0.33205492]
[1742147255660,0.27848992,603.74,602.32,0.30480577]
[1742147255959,0.27848992,603.73,602.34,0.33203838]
[1742147256154,0.27848992,603.75,602.34,0.33203838]
[1742147256359,0.27848992,603.75,602.35,0.30480577]
[1742147256658,0.27848992,603.75,602.36,0.33202735]
[1742147256858,0.27848992,603.75,602.37,0.30480577]
[1742147257053,0.27848992,603.74,602.37,0.30480577]
[1742147257257,0.27848992,603.75,602.38,0.33201633]
[1742147257453,0.33125745,603.76,602.38,0.33201633]
[1742147257653,0.2784634,603.75,602.39,0.30480229]
[1742147257861,0.2784634,603.74,602.4,0.33200531]
[1742147258157,0.2784634,603.73,602.41,0.30480229]
[1742147258352,0.33125745,603.76,602.42,0.33199428]
[1742147258353,0.2784634,603.75,602.42,0.33199428]
[1742147258557,0.2784634,603.74,602.42,0.33199428]
[1742147258752,0.2784634,603.73,602.42,0.33199428]
[1742147258957,0.2784634,603.75,602.42,0.33199428]
[1742147259157,0.33125745,603.76,602.42,0.33199428]
[1742147259353,0.27855456,603.75,602.42,0.33199428]
[1742147262557,0.27859061,603.71,602.42,0.33199428]
[1742147262756,0.33129037,603.7,602.42,0.33199428]
[1742147262960,0.27854721,603.69,602.42,0.33199428]
[1742147263161,0.33130135,603.68,602.42,0.33199428]
[1742147263362,0.27854721,603.67,602.42,0.33199428]
[1742147264664,0.33130135,603.68,602.42,0.33199428]
[1742147264862,0.27854241,603.67,602.42,0.33199428]
[1742147265255,0.33131232,603.66,602.42,0.33199428]
[1742147265466,0.27854241,603.65,602.42,0.33199428]
[1742147266569,0.27853438,603.64,602.42,0.33199428]
[1742147266762,0.27853438,603.63,602.42,0.33199428]
[1742147266962,0.27853438,603.65,602.42,0.33199428]
[1742147267166,0.27853438,603.64,602.42,0.33199428]
[1742147267364,0.27853438,603.65,602.42,0.33199428]
[1742147267562,0.27853438,603.64,602.42,0.33199428]
[1742147267763,0.27853438,603.65,602.42,0.33199428]
[1742147269963,0.27859907,603.64,602.42,0.33199428]
[1742147270165,0.27859907,603.65,602.42,0.33199428]
[1742147270365,0.27859907,603.63,602.42,0.33199428]
[1742147270563,0.27859907,603.62,602.42,0.33199428]
[1742147270864,0.27859907,603.61,602.42,0.33199428]
[1742147271067,0.27859907,603.65,602.42,0.33199428]
[1742147271566,0.27876957,603.64,602.42,0.33199428]
[1742147271766,0.33131232,603.66,602.42,0.33199428]
[1742147272066,0.27876997,603.65,602.42,0.33199428]
[1742147273366,0.27876997,603.64,602.42,0.33199428]
[1742147273569,0.27876997,603.63,602.42,0.33199428]
[1742147273764,0.27876997,603.65,602.42,0.33199428]
[1742147273965,0.27876997,603.64,602.42,0.33199428]
[1742147274168,0.27876997,603.63,602.42,0.33199428]
[1742147274368,0.27876997,603.62,602.42,0.33199428]
[1742147274568,0.27876997,603.61,602.42,0.33199428]
[1742147274763,0.27876997,603.6,602.42,0.33199428]
[1742147274965,0.27876997,603.59,602.42,0.33199428]
[1742147275270,0.61012621,603.58,602.42,0.33199428]
[1742147275464,2.64967977,603.77,602.42,0.33199428]
[1742147275465,0.33136173,603.57,602.42,0.33199428]
[1742147275670,0.2787096,603.56,602.42,0.33199428]
[1742147280876,0.2787515,603.55,602.42,0.33199428]
[1742147281076,0.2787515,603.56,602.42,0.33199428]